bitfinex-derivatives/quotes_BNBF0:USTF0_20250603
["timestamp","ask_amount","ask_price","bid_price","bid_amount"]
[1748917044905,1.02911643,670.32,670.3,0.29837386]
[1748917045109,1.02909957,670.33,670.3,0.29837386]
[1748917045308,0.45563563,670.32,670.3,0.29837386]
[1748917045507,1.48475879,670.31,670.3,0.29837386]
[1748917045713,2.96485974,670.31,670.3,0.29837386]
[1748917045911,1.48009823,670.31,669.45,1.11465906]
[1748917046111,1.02912069,670.3,669.47,0.29874378]
[1748917046412,1.48009823,670.31,669.47,0.29874378]
[1748917046413,2.07212066,670.29,669.47,0.29874378]
[1748917046610,0.45563661,670.28,669.47,0.29874378]
[1748917046813,0.45563661,670.27,669.47,0.29874378]
[1748917047009,1.02911313,670.27,669.47,0.29874378]
[1748917047413,1.02911314,670.26,669.47,0.29874378]
[1748917047718,1.02912109,670.25,669.47,0.29874378]
[1748917047913,0.45558358,670.25,669.47,0.29874378]
[1748917048416,1.096,670.24,669.47,0.29874378]
[1748917048608,1.02911618,670.23,669.47,0.29874378]
[1748917048812,1.364,670.23,669.47,0.29874378]
[1748917049616,2.24525554,670.22,669.47,0.29874378]
[1748917049813,1.02925334,670.21,669.47,0.29874378]
[1748917050216,1.02925334,670.2,669.47,0.29874378]
[1748917050417,1.216,670.22,669.47,0.29874378]
[1748917050617,1.02935974,670.19,669.47,0.29874378]
[1748917053411,1.02982971,670.18,669.47,0.29874378]
[1748917053618,0.968,670.18,669.47,0.29874378]
[1748917053917,2.05964336,670.17,669.47,0.29874378]
[1748917054116,1.02982173,670.17,669.47,0.29874378]
[1748917055017,2.05968247,670.16,669.47,0.29874378]
[1748917055220,1.02984131,670.16,669.47,0.29874378]
[1748917055717,1.02983038,670.15,669.47,0.29874378]
[1748917056022,1.02984131,670.16,669.47,0.29874378]
[1748917056717,2.10012491,670.15,669.47,0.29874378]
[1748917056912,1.03012567,670.14,669.47,0.29874378]
[1748917057214,0.45582362,670.13,669.47,0.29874378]
[1748917057415,1.02998106,670.12,669.47,0.29874378]
[1748917057615,0.45585914,670.11,669.47,0.29874378]
[1748917057819,0.45585914,670.1,669.47,0.29874378]
[1748917058013,0.45582468,670.09,669.47,0.29874378]
[1748917058219,1.07,670.15,669.47,0.29874378]
[1748917058422,0.45584263,670.14,669.47,0.29874378]
[1748917058723,1.02992033,670.13,669.47,0.29874378]
[1748917058921,1.07,670.15,669.47,0.29874378]
[1748917059118,0.45582946,670.14,669.47,0.29874378]
[1748917059317,1.48572466,670.12,669.47,0.29874378]
[1748917059722,0.45579847,670.11,669.47,0.29874378]
[1748917059923,1.48584607,670.1,669.47,0.29874378]
[1748917060123,1.02995533,670.09,669.47,0.29874378]
[1748917060419,1.0300016,670.08,669.47,0.29874378]
[1748917060626,1.02995546,670.09,669.47,0.29874378]
[1748917060816,1.03001907,670.08,669.47,0.29874378]
[1748917061016,1.03002286,670.07,669.47,0.29874378]
[1748917061221,1.02995546,670.09,669.47,0.29874378]
[1748917061418,1.02999356,670.06,669.47,0.29874378]
[1748917062325,1.02991834,670.05,669.47,0.29874378]
[1748917062526,1.02995546,670.09,669.47,0.29874378]
[1748917063019,1.02988195,670.08,669.47,0.29874378]
[1748917063421,1.02988323,670.07,669.47,0.29874378]
[1748917063624,1.02988195,670.08,669.47,0.29874378]
[1748917063821,1.02991946,670.07,669.47,0.29874378]
[1748917064026,1.02988195,670.08,669.47,0.29874378]
[1748917064222,1.02989582,670.06,669.47,0.29874378]
[1748917074138,1.02989582,670.06,669.47,1.40591645]
[1748917074440,1.02989582,670.06,669.47,0.29874378]
[1748917079144,0.987,670.05,669.52,1.10717267]
[1748917079344,0.987,670.05,669.53,0.29871701]
[1748917079545,1.259,670.04,669.53,0.29871701]
[1748917081143,1.259,670.04,669.53,1.40588968]
[1748917082047,1.259,670.04,669.53,0.29871701]
[1748917082250,1.259,670.04,669.53,1.40588968]
[1748917082944,1.259,670.04,669.53,0.29871701]
[1748917091654,1.069,670.03,669.53,0.29871701]
[1748917094055,1.165,670.02,669.53,0.29871701]
[1748917099768,1.38,670.01,669.53,0.29871701]
[1748917112877,1.165,670.02,669.53,0.29871701]
[1748917113476,1.165,670.02,669.53,1.41200402]
[1748917114772,1.165,670.02,669.53,0.29871701]
[1748917115878,1.315,670.01,669.53,0.29871701]
[1748917118975,1.315,670.01,669.55,1.11322957]
[1748917119176,1.315,670.01,669.56,0.29870362]
[1748917121280,1.315,670.01,669.56,1.41213231]
[1748917122481,1.315,670.01,669.57,1.11342869]
[1748917122683,1.315,670.01,669.58,0.2986947]
[1748917124482,1.315,670.01,669.58,1.4131478]
[1748917125282,1.315,670.01,669.59,1.1144531]
[1748917125483,1.315,670.01,669.6,0.29868578]
[1748917126079,1.315,670.01,669.6,1.41313888]
[1748917126579,1.315,670.01,669.61,1.1144531]
[1748917126786,1.315,670.01,669.62,0.29867686]
[1748917127782,1.315,670.01,669.62,1.41431213]
[1748917128080,0.986,670.0,669.62,1.41431213]
[1748917129392,0.986,670.0,669.62,0.29867686]
[1748917132384,1.284,669.99,669.62,0.29867686]
[1748917133382,1.373,669.98,669.62,0.29867686]
[1748917133791,1.373,669.98,669.62,1.4140349]
[1748917134887,1.373,669.98,669.62,0.29867686]
[1748917135586,1.373,669.98,669.62,1.41375163]
[1748917135786,1.373,669.98,669.67,1.11507477]
[1748917135993,1.373,669.98,669.68,0.2986501]
[1748917137594,1.373,669.98,669.68,1.41372487]
[1748917138293,1.373,669.98,669.7,1.11507477]
[1748917138488,1.373,669.98,669.72,1.11507477]
[1748917138691,1.373,669.98,669.73,0.2986278]
[1748917139890,1.373,669.98,669.73,1.41354452]
[1748917141193,1.373,669.98,669.73,0.2986278]
[1748917147303,1.013,669.97,669.73,0.2986278]
[1748917159314,1.373,669.98,669.73,0.2986278]
[1748917163421,1.102,669.97,669.73,0.2986278]
[1748917191237,3.584,670.07,669.73,0.2986278]
[1748917193435,1.005,670.06,669.73,0.2986278]
[1748917205452,1.02806985,670.05,669.73,0.2986278]
[1748917205748,1.005,670.06,669.73,0.2986278]
[1748917206349,2.05613365,670.04,669.73,0.2986278]
[1748917210558,1.02887253,670.03,669.73,0.2986278]
[1748917210758,2.05613365,670.04,669.73,0.2986278]
[1748917211653,1.02885616,670.03,669.73,0.2986278]
[1748917212053,2.05613365,670.04,669.73,0.2986278]
[1748917222963,1.03115572,670.03,669.73,0.2986278]
[1748917223269,2.05613365,670.04,669.73,0.2986278]
[1748917223663,1.0311539,670.03,669.73,0.2986278]
[1748917223868,2.05613365,670.04,669.73,0.2986278]
[1748917224070,1.03152113,670.03,669.73,0.2986278]
[1748917224265,2.05613365,670.04,669.73,0.2986278]
[1748917224464,1.03157027,670.03,669.73,0.2986278]
[1748917224665,2.05613365,670.04,669.73,0.2986278]
[1748917225472,1.03179466,670.03,669.73,0.2986278]
[1748917225668,2.05613365,670.04,669.73,0.2986278]
[1748917226264,2.07651714,670.03,669.73,0.2986278]
[1748917226570,1.045,670.03,669.73,0.2986278]
[1748917226771,1.03164409,670.02,669.73,0.2986278]
[1748917226972,1.03163357,670.01,669.73,0.2986278]
[1748917227168,1.03163462,670.0,669.73,0.2986278]
[1748917227472,1.045,670.03,669.73,0.2986278]
[1748917227673,1.03166958,670.02,669.73,0.2986278]
[1748917227870,1.045,670.03,669.73,0.2986278]
[1748917228070,1.03221937,670.02,669.73,0.2986278]
[1748917228270,1.045,670.03,669.73,0.2986278]
[1748917246084,1.03026603,670.02,669.73,0.2986278]
[1748917246483,1.0301449,670.01,669.73,0.2986278]
[1748917247083,1.03026603,670.02,669.73,0.2986278]
[1748917247484,1.02996648,670.01,669.73,0.2986278]
[1748917247689,1.03002096,670.0,669.73,0.2986278]
[1748917247990,1.03002099,669.99,669.73,0.2986278]
[1748917248191,2.06004225,669.99,669.73,0.2986278]
[1748917248386,1.03002099,669.99,669.73,0.2986278]
[1748917248588,1.02997045,669.98,669.73,0.2986278]
[1748917248789,1.03002099,669.99,669.73,0.2986278]
[1748917249192,1.02997256,669.98,669.73,0.2986278]
[1748917249389,1.02997206,669.97,669.73,0.2986278]
[1748917249584,1.03002099,669.99,669.73,0.2986278]
[1748917249791,1.02996494,669.98,669.73,0.2986278]
[1748917249991,1.03002099,669.99,669.73,0.2986278]
[1748917250191,1.02992517,669.98,669.73,0.2986278]
[1748917250393,1.03002099,669.99,669.73,0.2986278]
[1748917250589,1.02992498,669.98,669.73,0.2986278]
[1748917250788,1.03002099,669.99,669.73,0.2986278]
[1748917251389,1.02987151,669.98,669.73,0.2986278]
[1748917251689,1.02977755,669.97,669.73,0.2986278]
[1748917251894,1.03002099,669.99,669.73,0.2986278]
[1748917252396,1.02977009,669.98,669.73,0.2986278]
[1748917252596,1.03002099,669.99,669.73,0.2986278]
[1748917252797,1.02974766,669.98,669.73,0.2986278]
[1748917252995,1.02974501,669.97,669.73,0.2986278]
[1748917253196,1.03002099,669.99,669.73,0.2986278]
[1748917253393,1.02903063,669.98,669.73,0.2986278]
[1748917253598,1.03002099,669.99,669.73,0.2986278]
[1748917253798,1.02904928,669.97,669.73,0.2986278]
[1748917255100,1.02887849,669.96,669.73,0.2986278]
[1748917255301,1.02904928,669.97,669.73,0.2986278]
[1748917256797,1.02931941,669.96,669.73,0.2986278]
[1748917257001,1.02904928,669.97,669.73,0.2986278]
[1748917257403,1.02920739,669.96,669.73,0.2986278]
[1748917257606,1.02904928,669.97,669.73,0.2986278]
[1748917258301,2.26216788,669.96,669.73,0.2986278]
[1748917258501,1.233,669.96,669.73,0.2986278]
[1748917259803,1.02928068,669.95,669.73,0.2986278]
[1748917260003,1.233,669.96,669.73,0.2986278]
[1748917260508,1.02942855,669.95,669.73,0.2986278]
[1748917260707,1.233,669.96,669.73,0.2986278]
[1748917261101,1.02950296,669.95,669.73,0.2986278]
[1748917261311,1.233,669.96,669.73,0.2986278]
[1748917261704,1.02950702,669.95,669.73,0.2986278]
[1748917261906,1.233,669.96,669.73,0.2986278]
[1748917262107,1.02949115,669.95,669.73,0.2986278]
[1748917262305,1.0295485,669.94,669.73,0.2986278]
[1748917262503,1.02954946,669.93,669.73,0.2986278]
[1748917262703,1.233,669.96,669.73,0.2986278]
[1748917263103,1.02955214,669.95,669.73,0.2986278]
[1748917263409,1.02957574,669.94,669.73,0.2986278]
[1748917263601,1.02957169,669.93,669.73,0.2986278]
[1748917263804,1.02957574,669.94,669.73,0.2986278]
[1748917265309,1.02956819,669.93,669.73,0.2986278]
[1748917265604,1.02956882,669.92,669.73,0.2986278]
[1748917266005,1.02956819,669.93,669.73,0.2986278]
[1748917266213,1.02921772,669.91,669.73,0.2986278]
[1748917266410,1.02956819,669.93,669.73,0.2986278]
[1748917266604,1.02922122,669.92,669.73,0.2986278]
[1748917266805,1.02956819,669.93,669.73,0.2986278]
[1748917267307,1.02935267,669.92,669.73,0.2986278]
[1748917267509,1.02956819,669.93,669.73,0.2986278]
[1748917268005,1.02936707,669.92,669.73,0.2986278]
[1748917268210,1.02935744,669.91,669.73,0.2986278]
[1748917268510,1.02956819,669.93,669.73,0.2986278]
[1748917268905,1.02931766,669.92,669.73,0.2986278]
[1748917269103,1.02956819,669.93,669.73,0.2986278]
[1748917269813,1.02932049,669.92,669.73,0.2986278]
[1748917270008,1.02956819,669.93,669.73,0.2986278]
[1748917270311,1.02932209,669.92,669.73,0.2986278]
[1748917270503,1.0293253,669.91,669.73,0.2986278]
[1748917270707,1.02956819,669.93,669.73,0.2986278]
[1748917270908,1.02930565,669.9,669.73,0.2986278]
[1748917271109,1.02934082,669.89,669.73,0.2986278]
[1748917271304,1.02930565,669.9,669.73,0.2986278]
[1748917271909,1.02930053,669.89,669.73,0.2986278]
[1748917272206,1.02930565,669.9,669.73,0.2986278]
[1748917285016,0.945,669.89,669.73,0.2986278]
[1748917288513,1.02627292,669.88,669.73,0.2986278]
[1748917288713,0.945,669.89,669.73,0.2986278]
[1748917289017,1.02626877,669.88,669.73,0.2986278]
[1748917289209,0.945,669.89,669.73,0.2986278]
[1748917289410,1.02611318,669.88,669.73,0.2986278]
[1748917289910,0.945,669.89,669.73,0.2986278]
[1748917296114,1.02930565,669.9,669.73,0.2986278]
[1748917299219,1.007,669.89,669.73,0.2986278]
[1748917309026,1.007,669.89,669.74,1.11529681]
[1748917309218,1.007,669.89,669.75,0.29861888]
[1748917345542,1.007,669.89,669.75,1.40900118]
[1748917346740,1.007,669.89,669.75,0.29861888]
[1748917355847,1.007,669.89,669.76,1.11130319]
[1748917356048,1.007,669.89,669.77,0.29860997]
[1748917356249,1.02930565,669.9,669.77,0.29860997]
[1748917356447,1.02930565,669.9,669.77,1.40991316]
[1748917356642,1.02930565,669.9,669.8,1.11130319]
[1748917356844,1.02930565,669.9,669.81,0.29859213]
[1748917362744,1.02930565,669.9,669.81,1.78381357]
[1748917364153,1.02930565,669.9,669.85,1.48522144]
[1748917364353,1.02930565,669.9,669.86,0.29856985]
[1748917364559,1.02930565,669.9,669.86,1.78379129]
[1748917365353,1.02930565,669.9,669.86,0.29856985]
[1748917366653,1.02930565,669.9,669.86,1.78379129]
[1748917367758,1.02930565,669.9,669.87,1.48522144]
[1748917367950,1.02930565,669.9,669.88,0.29856093]
[1748917369251,1.02930565,669.9,669.89,1.1149679]
[1748917369451,1.02930565,669.9,669.89,1.41352437]
[1748917369756,1.02930565,669.9,669.89,1.41353797]
[1748917370153,1.02930565,669.9,669.89,0.29855647]
[1748917370858,1.02930565,669.9,669.89,1.41355106]
[1748917371851,1.02930565,669.9,669.89,0.29855647]
[1748917390868,0.56856285,669.93,669.89,0.29855647]
[1748917391174,0.56856285,669.93,669.9,1.11602922]
[1748917391369,0.56856285,669.93,669.91,0.29854756]
[1748917441013,0.89148292,669.92,669.91,0.29854756]
[1748917441220,0.56856285,669.93,669.91,0.29854756]
[1748917441519,0.9985581,669.92,669.91,0.29854756]
[1748917441717,0.56856285,669.93,669.91,0.29854756]
[1748917442013,1.89010667,669.92,669.91,0.29854756]
[1748917442220,2.78166126,669.92,669.91,0.29854756]
[1748917442516,1.89010667,669.92,669.91,0.29854756]
[1748917442919,2.8887726,669.92,669.91,0.29854756]
[1748917443317,3.78032275,669.92,669.91,0.29854756]
[1748917443514,3.8874351,669.92,669.91,0.29854756]
[1748917444017,4.88610069,669.92,669.91,0.29854756]
[1748917444321,5.77766346,669.92,669.91,0.29854756]
[1748917444519,5.77761583,669.92,669.91,0.29854756]
[1748917444818,3.8874351,669.92,669.91,0.29854756]
[1748917445012,6.77621483,669.92,669.91,0.29854756]
[1748917445215,4.88606044,669.92,669.91,0.29854756]
[1748917445411,5.77751397,669.92,669.91,0.29854756]
[1748917445713,4.88606044,669.92,669.91,0.29854756]
[1748917446116,6.66896231,669.92,669.91,0.29854756]
[1748917446317,5.77752029,669.92,669.91,0.29854756]
[1748917446713,7.77457597,669.92,669.91,0.29854756]
[1748917446914,6.77604446,669.92,669.91,0.29854756]
[1748917447114,6.7760518,669.92,669.91,0.29854756]
[1748917447620,8.77311507,669.92,669.91,0.29854756]
[1748917447816,7.77458634,669.92,669.91,0.29854756]
[1748917448418,9.66470539,669.92,669.91,0.29854756]
[1748917448615,7.77458634,669.92,669.91,0.29854756]
[1748917448820,8.77314271,669.92,669.91,0.29854756]
[1748917449022,9.77172302,669.92,669.91,0.29854756]
[1748917449322,7.77458634,669.92,669.91,0.29854756]
[1748917449621,8.6662007,669.92,669.91,0.29854756]
[1748917450022,9.66484189,669.92,669.91,0.29854756]
[1748917450223,10.55649692,669.92,669.91,0.29854756]
[1748917450621,11.44863008,669.92,669.91,0.29854756]
[1748917450928,11.44862924,669.92,669.91,0.29854756]
[1748917451127,10.55649692,669.92,669.91,0.29854756]
[1748917451323,12.34074717,669.92,669.91,0.29854756]
[1748917451521,11.44862131,669.92,669.91,0.29854756]
[1748917451727,12.34074506,669.92,669.91,0.29854756]
[1748917451921,11.44862131,669.92,669.91,0.29854756]
[1748917452124,12.34075065,669.92,669.91,0.29854756]
[1748917452322,13.33880015,669.92,669.91,0.29854756]
[1748917452522,12.34074122,669.92,669.91,0.29854756]
[1748917452726,11.44862131,669.92,669.91,0.29854756]
[1748917453122,12.44783809,669.92,669.91,0.29854756]
[1748917453329,11.44862131,669.92,669.91,0.29854756]
[1748917454332,12.34105265,669.92,669.91,0.29854756]
[1748917454531,11.44862131,669.92,669.91,0.29854756]
[1748917454731,12.33995393,669.92,669.91,0.29854756]
[1748917454932,13.3413353,669.92,669.91,0.29854756]
[1748917455132,12.33995462,669.92,669.91,0.29854756]
[1748917455325,11.44862131,669.92,669.91,0.29854756]
[1748917456236,12.33981903,669.92,669.91,0.29854756]
[1748917556803,13.23359113,669.92,669.91,0.29854756]
[1748917556996,13.23357161,669.92,669.91,0.29854756]
[1748917557197,12.33981903,669.92,669.91,0.29854756]
[1748917557801,13.23357292,669.92,669.91,0.29854756]
[1748917558002,14.12777055,669.92,669.91,0.29854756]
[1748917558304,13.23357292,669.92,669.91,0.29854756]
[1748917558506,14.12776175,669.92,669.91,0.29854756]
[1748917558705,13.23357292,669.92,669.91,0.29854756]
[1748917559100,14.12777131,669.92,669.91,0.29854756]
[1748917559300,14.12777151,669.92,669.91,0.29854756]
[1748917559501,14.12776203,669.92,669.91,0.29854756]
[1748917559898,13.23357292,669.92,669.91,0.29854756]
[1748917561307,14.12777488,669.92,669.91,0.29854756]
[1748917561605,15.0219328,669.92,669.91,0.29854756]
[1748917562004,13.13182613,669.92,669.91,0.29854756]
[1748917562406,14.02603703,669.92,669.91,0.29854756]
[1748917562606,13.13182613,669.92,669.91,0.29854756]
[1748917563001,14.02605956,669.92,669.91,0.29854756]
[1748917563204,13.13182613,669.92,669.91,0.29854756]
[1748917563403,14.02605401,669.92,669.91,0.29854756]
[1748917563605,13.13182613,669.92,669.91,0.29854756]
[1748917564402,14.02606138,669.92,669.91,0.29854756]
[1748917564707,14.92029789,669.92,669.91,0.29854756]
[1748917564907,14.92029848,669.92,669.91,0.29854756]
[1748917565103,15.81453545,669.92,669.91,0.29854756]
[1748917565302,15.81453643,669.92,669.91,0.29854756]
[1748917565501,13.13182613,669.92,669.91,0.29854756]
[1748917565703,14.0260613,669.92,669.91,0.29854756]
[1748917566504,14.92029224,669.92,669.91,0.29854756]
[1748917566700,14.0260613,669.92,669.91,0.29854756]
[1748917567100,14.92029826,669.92,669.91,0.29854756]
[1748917567310,14.92029041,669.92,669.91,0.29854756]
[1748917567808,15.81452631,669.92,669.91,0.29854756]
[1748917568012,14.92029041,669.92,669.91,0.29854756]
[1748917568209,15.81452374,669.92,669.91,0.29854756]
[1748917568509,16.70876272,669.92,669.91,0.29854756]
[1748917568709,15.81452374,669.92,669.91,0.29854756]
[1748917569110,16.70755521,669.92,669.91,0.29854756]
[1748917569409,16.70755791,669.92,669.91,0.29854756]
[1748917569608,16.70755807,669.92,669.91,0.29854756]
[1748917569809,15.81452374,669.92,669.91,0.29854756]
[1748917570712,16.70756533,669.92,669.91,0.29854756]
[1748917572109,7.14905069,669.92,669.91,0.29854756]
[1748917582911,6.25785297,669.92,669.91,0.29854756]
[1748917682894,7.14815788,669.92,669.91,0.29854756]
[1748917683095,8.03844709,669.92,669.91,0.29854756]
[1748917683296,6.25785297,669.92,669.91,0.29854756]
[1748917684098,3.5757392,669.92,669.91,0.29854756]
[1748917684592,4.46598677,669.92,669.91,0.29854756]
[1748917684996,5.35622981,669.92,669.91,0.29854756]
[1748917685201,4.46598677,669.92,669.91,0.29854756]
[1748917685995,5.35622977,669.92,669.91,0.29854756]
[1748917686196,5.35622965,669.92,669.91,0.29854756]
[1748917686496,4.46598677,669.92,669.91,0.29854756]
[1748917686794,5.35642816,669.92,669.91,0.29854756]
[1748917686997,4.46598677,669.92,669.91,0.29854756]
[1748917687801,5.35552931,669.92,669.91,0.29854756]
[1748917688101,4.46598677,669.92,669.91,0.29854756]
[1748917688302,5.3556713,669.92,669.91,0.29854756]
[1748917688498,5.35568331,669.92,669.91,0.29854756]
[1748917688703,5.35566114,669.92,669.91,0.29854756]
[1748917688904,4.46598677,669.92,669.91,0.29854756]
[1748917691301,5.46377157,669.92,669.91,0.29854756]
[1748917691500,4.46598677,669.92,669.91,0.29854756]
[1748917691704,6.35404212,669.92,669.91,0.29854756]
[1748917691899,4.46598677,669.92,669.91,0.29854756]
[1748917692104,7.24427543,669.92,669.91,0.29854756]
[1748917692301,6.35402585,669.92,669.91,0.29854756]
[1748917692600,5.35623329,669.92,669.91,0.29854756]
[1748917693204,7.24540518,669.92,669.91,0.29854756]
[1748917693508,7.24540724,669.92,669.91,0.29854756]
[1748917693701,7.24665426,669.92,669.91,0.29854756]
[1748917693901,5.35623329,669.92,669.91,0.29854756]
[1748917694201,1.78049409,669.92,669.91,0.29854756]
[1748917694801,3.67094803,669.92,669.91,0.29854756]
[1748917695005,2.77972246,669.92,669.91,0.29854756]
[1748917695206,1.78049409,669.92,669.91,0.29854756]
[1748917695805,2.67167459,669.92,669.91,0.29854756]
[1748917696003,2.77848898,669.92,669.91,0.29854756]
[1748917696603,4.66766904,669.92,669.91,0.29854756]
[1748917696909,2.77848898,669.92,669.91,0.29854756]
[1748917729430,3.66892131,669.92,669.91,0.29854756]
[1748917729630,2.77848898,669.92,669.91,0.29854756]
[1748917729829,3.66893095,669.92,669.91,0.29854756]
[1748917730026,2.77848898,669.92,669.91,0.29854756]
[1748917730727,3.66891573,669.92,669.91,0.29854756]
[1748917730924,2.77848898,669.92,669.91,0.29854756]
[1748917731526,4.66711353,669.92,669.91,0.29854756]
[1748917731727,2.77848898,669.92,669.91,0.29854756]
[1748917732032,3.66877212,669.92,669.91,0.29854756]
[1748917732231,2.77848898,669.92,669.91,0.29854756]
[1748917732636,3.66884261,669.92,669.91,0.29854756]
[1748917732832,3.66890308,669.92,669.91,0.29854756]
[1748917733029,2.77848898,669.92,669.91,0.29854756]
[1748917733633,4.55933265,669.92,669.91,0.29854756]
[1748917733833,5.55778398,669.92,669.91,0.29854756]
[1748917734029,4.55933265,669.92,669.91,0.29854756]
[1748917734431,5.55779162,669.92,669.91,0.29854756]
[1748917734630,5.44984881,669.92,669.91,0.29854756]
[1748917734835,5.55778772,669.92,669.91,0.29854756]
[1748917735131,6.55624033,669.92,669.91,0.29854756]
[1748917735331,5.55778751,669.92,669.91,0.29854756]
[1748917735536,6.44831826,669.92,669.91,0.29854756]
[1748917735835,5.55778751,669.92,669.91,0.29854756]
[1748917736032,6.44979195,669.92,669.91,0.29854756]
[1748917736229,7.44825469,669.92,669.91,0.29854756]
[1748917736430,6.55625201,669.92,669.91,0.29854756]
[1748917736629,8.44671857,669.92,669.91,0.29854756]
[1748917736829,6.55625201,669.92,669.91,0.29854756]
[1748917737329,8.44665928,669.92,669.91,0.29854756]
[1748917737532,9.44505864,669.92,669.91,0.29854756]
[1748917738036,8.44665928,669.92,669.91,0.29854756]
[1748917739033,10.33711655,669.92,669.91,0.29854756]
[1748917739230,8.44665928,669.92,669.91,0.29854756]
[1748917739730,10.33731707,669.92,669.91,0.29854756]
[1748917739937,9.33875336,669.92,669.91,0.29854756]
[1748917740237,8.44665928,669.92,669.91,0.29854756]
[1748917740432,10.34532572,669.92,669.91,0.29854756]
[1748917740635,8.44665928,669.92,669.91,0.29854756]
[1748917804468,7.55641171,669.92,669.91,0.29854756]
[1748917814574,6.66616519,669.92,669.91,0.29854756]
[1748917824481,5.6681703,669.92,669.91,0.29854756]
[1748917854603,3.88732663,669.92,669.91,0.29854756]
[1748917864606,1.47861364,670.37,669.91,0.29854756]
[1748917865809,0.89388541,670.36,669.91,0.29854756]
[1748917866006,1.47861364,670.35,669.91,0.29854756]
[1748917866810,0.8938255,670.34,669.91,0.29854756]
[1748917867111,0.89382256,670.33,669.91,0.29854756]
[1748917867311,1.47861364,670.41,669.91,0.29854756]
[1748917867511,0.89382471,670.4,669.91,0.29854756]
[1748917867713,1.47861364,670.41,669.91,0.29854756]
[1748917868312,0.46048787,670.4,669.91,0.29854756]
[1748917868808,1.35434454,670.39,669.91,0.29854756]
[1748917869005,0.89385501,670.38,669.91,0.29854756]
[1748917869206,0.89385182,670.37,669.91,0.29854756]
[1748917869409,0.89385432,670.36,669.91,0.29854756]
[1748917869607,0.89385545,670.35,669.91,0.29854756]
[1748917869809,0.89385501,670.38,669.91,0.29854756]
[1748917870214,0.89383858,670.37,669.91,0.29854756]
[1748917870409,0.89385226,670.36,669.91,0.29854756]
[1748917870609,0.89385501,670.38,669.91,0.29854756]
[1748917870814,0.89385563,670.37,669.91,0.29854756]
[1748917871111,0.89385501,670.38,669.91,0.29854756]
[1748917871811,0.8938575,670.37,669.91,0.29854756]
[1748917872011,0.89385736,670.36,669.91,0.29854756]
[1748917872211,0.8938575,670.37,669.91,0.29854756]
[1748917873018,0.8944712,670.36,669.91,0.29854756]
[1748917873216,0.8938575,670.37,669.91,0.29854756]
[1748917873416,0.89447125,670.36,669.91,0.29854756]
[1748917873612,0.8938575,670.37,669.91,0.29854756]
[1748917873818,0.89446933,670.36,669.91,0.29854756]
[1748917874018,0.89447037,670.35,669.91,0.29854756]
[1748917874222,0.89447364,670.34,669.91,0.29854756]
[1748917874420,0.8938575,670.37,669.91,0.29854756]
[1748917876920,0.89442121,670.36,669.91,0.29854756]
[1748917877120,0.89443773,670.35,669.91,0.29854756]
[1748917877319,0.89443894,670.34,669.91,0.29854756]
[1748917877518,0.89447545,670.33,669.91,0.29854756]
[1748917877724,0.89447876,670.32,669.91,0.29854756]
[1748917877926,0.8938575,670.37,669.91,0.29854756]
[1748917878830,0.89530189,670.36,669.91,0.29854756]
[1748917879024,0.89530119,670.35,669.91,0.29854756]
[1748917879223,0.89530119,670.34,669.91,0.29854756]
[1748917879421,0.89528578,670.33,669.91,0.29854756]
[1748917879622,0.8938575,670.37,669.91,0.29854756]
[1748917880023,0.8952732,670.36,669.91,0.29854756]
[1748917880228,0.8938575,670.37,669.91,0.29854756]
[1748917880423,0.89527128,670.36,669.91,0.29854756]
[1748917880629,0.89527861,670.35,669.91,0.29854756]
[1748917880929,0.8938575,670.37,669.91,0.29854756]
[1748917881127,0.89528084,670.36,669.91,0.29854756]
[1748917881429,0.8938575,670.37,669.91,0.29854756]
[1748917881728,0.89525016,670.36,669.91,0.29854756]
[1748917881929,0.89519256,670.35,669.91,0.29854756]
[1748917882130,0.8938575,670.37,669.91,0.29854756]
[1748917882331,0.89505684,670.34,669.91,0.29854756]
[1748917882527,0.8938575,670.37,669.91,0.29854756]
[1748917882727,0.89498444,670.36,669.91,0.29854756]
[1748917882926,0.89502055,670.35,669.91,0.29854756]
[1748917883128,0.8938575,670.37,669.91,0.29854756]
[1748917883324,1.628,670.34,669.91,0.29854756]
[1748917898341,0.8938575,670.37,669.91,0.29854756]
[1748917901741,1.597,670.36,669.91,0.29854756]
[1748917911946,2.17705405,670.35,669.91,0.29854756]
[1748917912148,1.288,670.35,669.91,0.29854756]
[1748917912946,1.453,670.34,669.91,0.29854756]
[1748917913147,2.522,670.34,669.91,0.29854756]
[1748917916850,1.367,670.33,669.91,0.29854756]
[1748917920050,2.84561364,670.33,669.91,0.29854756]
[1748917920755,1.47861364,670.32,669.91,0.29854756]
[1748917920953,2.84561364,670.33,669.91,0.29854756]
[1748917921350,1.47861364,670.31,669.91,0.29854756]
[1748917922951,1.47861364,670.3,669.91,0.29854756]
[1748917923254,1.47861364,670.31,669.91,0.29854756]
[1748917923953,1.47861364,670.3,669.91,0.29854756]
[1748917924657,1.47861364,670.31,669.91,0.29854756]
[1748917927356,0.88545564,670.3,669.91,0.29854756]